fUST/lending_fUST_20241205
["ID","MTS","AMOUNT","RATE_DAILY","PERIOD"]
[344348144,1733361049466,-203.353108,0.0003,7]
[344348145,1733361049476,-203.353108,0.0003,7]
[344348146,1733361049485,-203.353108,0.0003,7]
[344348147,1733361049497,-203.353108,0.0003,7]
[344348148,1733361049506,-224.0,0.0003,2]
[344348149,1733361049515,-151.0,0.0003,7]
[344348150,1733361049524,-205.479,0.0003004,120]
[344348151,1733361049534,-7370.41046534,0.00030136,7]
[344348152,1733361049543,-500.0,0.00030136,6]
[344348153,1733361049552,-500.0,0.00030136,2]
[344348154,1733361049561,-250.12049086,0.00030136,2]
[344348155,1733361049571,-1000.0,0.00030136,120]
[344348156,1733361049581,-151.0,0.00030136,7]
[344348157,1733361049590,-763.09535748,0.00030136,2]
[344348158,1733361049599,-201.607095,0.00030137,120]
[344348159,1733361049609,-151.0,0.0003015,7]
[344348160,1733361049618,-262.0,0.00030205,2]
[344348161,1733361049627,-7117.60133765,0.00030297,14]
[344348162,1733361049637,-150.0,0.00030346,120]
[344348163,1733361049646,-1000.0,0.0003041,120]
[344348164,1733361049656,-6866.67017933,0.00030425,2]
[344348165,1733361049666,-1003.02500364,0.000305,30]
[344348166,1733361049678,-172.19257,0.00030527,2]
[344348167,1733361049687,-151.0,0.00030619,7]
[344348168,1733361049698,-151.0,0.00030647,7]
[344348169,1733361049707,-1000.0,0.00030684,120]
[344348170,1733361049717,-151.0,0.000307,7]
[344348171,1733361049728,-151.0,0.000307,7]
[344348172,1733361049738,-763.09535748,0.00030726,2]
[344348173,1733361049750,-1168.40592398,0.00030726,2]
[344348174,1733361049759,-155.0,0.00030755,2]
[344348175,1733361049769,-151.0,0.00030813,7]
[344348176,1733361049778,-151.0,0.00030813,7]
[344348177,1733361049789,-151.0,0.00030813,7]
[344348178,1733361049799,-151.0,0.00030813,7]
[344348179,1733361049809,-151.0,0.00030813,7]
[344348180,1733361049819,-151.0,0.00030813,7]
[344348181,1733361049829,-170.02144,0.00030813,7]
[344348182,1733361049839,-151.0,0.00030813,7]
[344348183,1733361049848,-151.0,0.00030813,7]
[344348184,1733361049858,-151.0,0.00030813,7]
[344348185,1733361049868,-151.0,0.00030813,7]
[344348186,1733361049878,-151.0,0.00030813,7]
[344348187,1733361049888,-151.0,0.00030813,7]
[344348188,1733361049898,-151.0,0.00030813,7]
[344348189,1733361049907,-151.0,0.00030813,7]
[344348190,1733361049917,-151.0,0.00030813,7]
[344348191,1733361049927,-208.062338,0.00030813,7]
[344348192,1733361049936,-151.0,0.00030813,7]
[344348193,1733361049946,-151.0,0.00030813,7]
[344348194,1733361049956,-151.0,0.00030813,7]
[344348195,1733361049966,-151.0,0.00030813,7]
[344348196,1733361049976,-242.142622,0.00030813,7]
[344348197,1733361049986,-158.05466,0.00030813,7]
[344348198,1733361049998,-158.05466,0.00030813,7]
[344348199,1733361050008,-792.597654,0.00030813,7]
[344348200,1733361050017,-792.597654,0.00030813,7]
[344348201,1733361050027,-792.597654,0.00030813,7]
[344348202,1733361050037,-792.597654,0.00030813,7]
[344348203,1733361050048,-792.597654,0.00030813,7]
[344348204,1733361050058,-792.597654,0.00030813,7]
[344348205,1733361050069,-792.597654,0.00030813,7]
[344348206,1733361050079,-792.597654,0.00030813,7]
[344348207,1733361050089,-792.597654,0.00030813,7]
[344348208,1733361050099,-792.597649,0.00030813,7]
[344348209,1733361050110,-151.0,0.00030813,7]
[344348210,1733361050120,-151.0,0.00030813,7]
[344348211,1733361050129,-151.0,0.00030813,7]
[344348212,1733361050139,-543.483016,0.00030813,7]
[344348213,1733361050150,-543.483016,0.00030813,7]
[344348214,1733361050160,-151.0,0.00030813,7]
[344348215,1733361050169,-331.107855,0.00030813,7]
[344348216,1733361050183,-331.107855,0.00030813,7]
[344348217,1733361050193,-260.052975,0.00030813,7]
[344348218,1733361050203,-260.052975,0.00030813,7]
[344348219,1733361050214,-160.845121,0.00030813,7]
[344348220,1733361050224,-160.845121,0.00030813,7]
[344348221,1733361050234,-158.05466,0.00030816,7]
[344348222,1733361050247,-158.05466,0.00030816,7]
[344348223,1733361050258,-158.05466,0.00030816,7]
[344348224,1733361050268,-158.05466,0.00030816,7]
[344348225,1733361050278,-158.05466,0.00030816,7]
[344348226,1733361050287,-158.05466,0.00030816,7]
[344348227,1733361050297,-158.05466,0.00030816,7]
[344348228,1733361050306,-158.05466,0.00030816,7]
[344348229,1733361050315,-158.05466,0.00030816,7]
[344348230,1733361050325,-158.05466,0.00030816,7]
[344348231,1733361050335,-158.05466,0.00030816,7]
[344348232,1733361050344,-158.05466,0.00030816,7]
[344348233,1733361050354,-158.05466,0.00030816,7]
[344348234,1733361050363,-158.05466,0.00030816,7]
[344348235,1733361050373,-158.05466,0.00030816,7]
[344348236,1733361050383,-158.05466,0.00030816,7]
[344348237,1733361050392,-158.05466,0.00030816,7]
[344348238,1733361050401,-158.054664,0.00030816,7]
[344348239,1733361050411,-151.0,0.00030816,7]
[344348240,1733361050419,-151.0,0.00030816,7]
[344348241,1733361050429,-151.0,0.00030816,7]
[344348242,1733361050439,-151.0,0.00030816,7]
[344348243,1733361050448,-151.0,0.00030816,7]
[344348244,1733361050458,-151.0,0.00030816,7]
[344348245,1733361050467,-151.0,0.00030816,7]
[344348246,1733361050477,-151.0,0.00030816,7]
[344348247,1733361050486,-151.0,0.00030816,7]
[344348248,1733361050498,-151.0,0.00030816,7]
[344348249,1733361050508,-151.0,0.00030816,7]
[344348250,1733361050517,-151.0,0.00030816,7]
[344348251,1733361050528,-151.0,0.00030816,7]
[344348252,1733361050537,-151.0,0.00030816,7]
[344348253,1733361050547,-151.0,0.00030816,7]
[344348254,1733361050556,-279.912334,0.00030816,7]
[344348255,1733361050567,-543.483016,0.00030816,7]
[344348256,1733361050576,-543.483016,0.00030816,7]
[344348257,1733361050586,-543.483016,0.00030816,7]
[344348258,1733361050595,-543.483016,0.00030816,7]
[344348259,1733361050605,-543.483016,0.00030816,7]
[344348260,1733361050614,-543.483016,0.00030816,7]
[344348261,1733361050624,-543.483016,0.00030816,7]
[344348262,1733361050634,-543.483016,0.00030816,7]
[344348263,1733361050643,-543.483016,0.00030816,7]
[344348264,1733361050652,-543.483016,0.00030816,7]
[344348265,1733361050662,-543.483016,0.00030816,7]
[344348266,1733361050672,-543.483016,0.00030816,7]
[344348267,1733361050681,-543.483016,0.00030816,7]
[344348268,1733361050690,-543.483016,0.00030816,7]
[344348269,1733361050700,-543.483016,0.00030816,7]
[344348270,1733361050709,-543.483016,0.00030816,7]
[344348271,1733361050718,-543.483016,0.00030816,7]
[344348272,1733361050729,-543.483014,0.00030816,7]
[344348273,1733361050739,-151.0,0.00030816,7]
[344348274,1733361050752,-151.0,0.00030816,7]
[344348275,1733361050761,-151.0,0.00030816,7]
[344348276,1733361050770,-854.75693,0.00030816,7]
[344348277,1733361050780,-854.75693,0.00030816,7]
[344348278,1733361050789,-151.0,0.00030821,7]
[344348279,1733361050798,-331.107855,0.00030821,7]
[344348280,1733361050808,-331.107855,0.00030821,7]
[344348281,1733361050817,-331.107855,0.00030821,7]
[344348282,1733361050827,-331.107855,0.00030821,7]
[344348283,1733361050836,-331.107855,0.00030821,7]
[344348284,1733361050846,-331.107854,0.00030821,7]
[344348285,1733361050855,-260.052975,0.00030821,7]
[344348286,1733361050865,-260.052975,0.00030821,7]
[344348287,1733361050875,-260.052975,0.00030821,7]
[344348288,1733361050885,-260.052975,0.00030821,7]
[344348289,1733361050894,-260.052975,0.00030821,7]
[344348290,1733361050917,-260.052966,0.00030821,7]
[344348291,1733361050926,-160.845121,0.00030821,7]
[344348292,1733361050936,-160.845121,0.00030821,7]
[344348293,1733361050946,-160.845121,0.00030821,7]
[344348294,1733361050955,-160.845121,0.00030821,7]
[344348295,1733361050964,-160.845121,0.00030821,7]
[344348296,1733361050974,-160.84512,0.00030821,7]
[344348297,1733361050984,-153.04529,0.00030825,7]
[344348298,1733361050994,-854.75693,0.00030825,7]
[344348299,1733361051004,-854.75693,0.00030825,7]
[344348300,1733361051014,-854.75693,0.00030825,7]
[344348301,1733361051023,-854.75693,0.00030825,7]
[344348302,1733361051033,-854.75693,0.00030825,7]
[344348303,1733361051043,-854.75692665,0.00030825,7]
[344348304,1733361051052,-355.706067,0.00030826,7]
[344348305,1733361051062,-355.706067,0.00030826,7]
[344348306,1733361051071,-355.706067,0.00030826,7]
[344348307,1733361051081,-355.706067,0.00030826,7]
[344348308,1733361051091,-355.706067,0.00030826,7]
[344348309,1733361051101,-355.706067,0.00030826,7]
[344348310,1733361051110,-355.706067,0.00030826,7]
[344348311,1733361051121,-355.706068,0.00030826,7]
[344348312,1733361051131,-203.353108,0.00030826,7]
[344348313,1733361051141,-203.353108,0.00030826,7]
[344348314,1733361051150,-203.353108,0.00030826,7]
[344348315,1733361051160,-203.353108,0.00030826,7]
[344348316,1733361051174,-203.353108,0.00030826,7]
[344348317,1733361051184,-203.353108,0.00030826,7]
[344348318,1733361051194,-203.353108,0.00030826,7]
[344348319,1733361051204,-203.353109,0.00030826,7]
[344348320,1733361051214,-151.0,0.00030826,7]
[344348321,1733361051224,-151.0,0.00030826,7]
[344348322,1733361051233,-151.0,0.00030826,7]
[344348323,1733361051246,-272699.41439668,0.00030826,10]
[344348324,1733361051255,-502.83186282,0.00030826,120]
[344348325,1733361051266,-197.97438559,0.00030826,120]
[344348326,1733361051275,-2895.32264112,0.00030826,60]
[344348327,1733361051285,-1060.92104786,0.00030826,10]
[344348328,1733361051294,-519.64320517,0.00030826,2]
[344348329,1733361051303,-6242.33691949,0.00030826,7]
[344348330,1733361051312,-655.20268765,0.00030826,2]
[344348331,1733361051322,-87744.58732227,0.00030826,7]
[344348332,1733361051331,-2985.96111608,0.00030826,7]
[344348333,1733361051340,-1576.34270402,0.00030826,120]
[344348334,1733361051349,-1439.34773577,0.00030826,30]
[344348335,1733361051359,-176.81714654,0.00030826,2]
[344348336,1733361051368,-486.51384204,0.00030826,3]
[344348337,1733361051378,-1389.25689627,0.00030826,120]
[344348338,1733361051387,-4934.47212506,0.00030826,2]
[344348339,1733361051397,-68653.24586975,0.00030826,7]
[344348340,1733361051406,-579.38545636,0.00030826,2]
[344348341,1733361051415,-1489.01351471,0.00030826,2]
[344348342,1733361051425,-1000.17699329,0.00030826,2]
[344348343,1733361051434,-460.67195999,0.00030826,120]
[344348344,1733361051571,-1479.75998319,0.00030826,30]
[344348345,1733361051583,-1875.24483813,0.00030826,2]
[344348346,1733361051594,-1475960.58971631,0.00030826,10]
[344348347,1733361051657,-3629.11310507,0.00030826,10]
[344348348,1733361051732,-500.0,0.00022781,2]
[344348349,1733361051746,-6499.0365086,0.00030826,10]
[344348350,1733361051757,-4612.69624,0.00030826,10]
[344348352,1733361136924,163.864264,0.00013973,2]
[344348355,1733361364475,400.0,0.00020232,10]
[344348361,1733361753254,163.905149,0.00013973,2]
[344348365,1733361997157,-155.002,0.0002,2]
[344348366,1733361997180,-66.78107097,0.000239,2]
[344348373,1733362122325,544.11754444,0.00015,7]
[344348824,1733362236371,-86.76565637,0.000239,2]
[344348826,1733362236381,-154.023,0.00024,5]
[344348828,1733362236392,-300.0,0.00024421,2]
[344348830,1733362236403,-282.21136363,0.00024421,2]
[344348844,1733362236535,-17.78863637,0.00024421,2]
[344348846,1733362236548,-835.9231549,0.00024422,2]
[344348849,1733362236560,-2866.63299792,0.00024422,2]
[344348851,1733362236573,-21197.44384718,0.00024422,2]
[344348853,1733362236582,-223.3560705,0.00024798,2]
[344348855,1733362236592,-151.0,0.00025,7]
[344348858,1733362236604,-22677.87838903,0.00025,7]
[344348860,1733362236614,-1043.93802803,0.00025,2]
[344348862,1733362236624,-882.30319757,0.00025,2]
[344348864,1733362236633,-166.05135403,0.00025,2]
[344348866,1733362236643,-10364.0,0.00025,2]
[344348868,1733362236652,-185.0,0.00025,2]
[344348870,1733362236661,-327.18740001,0.00025089,2]
[344348872,1733362236671,-254461.36888917,0.0002509,2]
[344348874,1733362236681,-163.905149,0.00025156,2]
[344348875,1733362236691,-385.818147,0.00025173,7]
[344348878,1733362236700,-385.818147,0.00025173,7]
[344348880,1733362236710,-500.0,0.00026261,2]
[344348881,1733362236719,-500.0,0.00026261,2]
[344348883,1733362236729,-327.56859036,0.00026261,2]
[344348885,1733362236738,-500.0,0.00026261,2]
[344348887,1733362236748,-500.0,0.00026261,2]
[344348889,1733362236757,-500.0,0.00026261,2]
[344348891,1733362236767,-500.0,0.00026261,2]
[344348893,1733362236777,-500.0,0.00026261,2]
[344348896,1733362236788,-500.0,0.00026261,2]
[344348898,1733362236797,-500.0,0.00026261,2]
[344348900,1733362236806,-500.0,0.00026261,2]
[344348902,1733362236816,-500.0,0.00026261,2]
[344348904,1733362236826,-272.16856251,0.00026261,2]
[344348906,1733362236837,-167.761,0.00026262,12]
[344348908,1733362236850,-151.0,0.0002628,7]
[344348910,1733362236860,-385.818147,0.00026342,7]
[344348912,1733362236869,-385.818147,0.00026342,7]
[344348914,1733362236879,-420.0,0.00026472,2]
[344348915,1733362236888,-500.0,0.00026535,2]
[344348918,1733362236899,-500.0,0.00026535,2]
[344348920,1733362236908,-500.0,0.00026535,2]
[344348922,1733362236918,-500.0,0.00026535,2]
[344348924,1733362236928,-500.0,0.00026535,2]
[344348926,1733362236939,-500.0,0.00026535,2]
[344348928,1733362236948,-500.0,0.00026535,2]
[344348930,1733362236958,-540.30717609,0.00026535,2]
[344348932,1733362236968,-500.0,0.00026535,2]
[344348934,1733362236978,-500.0,0.00026535,2]
[344348936,1733362236987,-500.0,0.00026535,2]
[344348938,1733362236998,-2170.0,0.00026783,2]
[344348939,1733362237008,-2375.0,0.00026783,2]
[344348942,1733362237018,-175.647,0.00026783,2]
[344348943,1733362237027,-249.139,0.00026783,2]
[344348945,1733362237037,-500.0,0.00026809,2]
[344348947,1733362237046,-500.0,0.00026809,2]
[344348949,1733362237056,-500.0,0.00026809,2]
[344348952,1733362237066,-500.0,0.00026809,2]
[344348953,1733362237075,-500.0,0.00026809,2]
[344348970,1733362237256,-500.0,0.00026809,2]
[344348972,1733362237266,-500.0,0.00026809,2]
[344348974,1733362237276,-500.0,0.00026809,2]
[344348976,1733362237286,-340.97265767,0.00026809,2]
[344348978,1733362237296,-500.0,0.00026809,2]
[344348980,1733362237306,-420.0,0.00026864,2]
[344348982,1733362237316,-4816.94471468,0.00027,2]
[344348984,1733362237325,-500.0,0.00027083,2]
[344348986,1733362237335,-500.0,0.00027083,2]
[344348988,1733362237347,-500.0,0.00027083,2]
[344348990,1733362237357,-500.0,0.00027083,2]
[344348992,1733362237366,-560.19,0.00027083,2]
[344348994,1733362237376,-500.0,0.00027083,2]
[344348995,1733362237385,-515.37226919,0.00027083,2]
[344348997,1733362237395,-500.0,0.00027083,2]
[344348999,1733362237405,-151.0,0.00027164,7]
[344349001,1733362237415,-503.0065059,0.00027329,10]
[344349002,1733362237424,-500.0,0.00027329,10]
[344349003,1733362237434,-500.0,0.00027357,2]
[344349004,1733362237444,-528.07,0.00027357,2]
[344349005,1733362237453,-586.92406444,0.00027357,2]
[344349006,1733362237463,-385.818147,0.00027376,7]
[344349007,1733362237474,-385.818147,0.00027376,7]
[344349008,1733362237483,-876.30444299,0.00027451,2]
[344349009,1733362237493,-2388.89,0.000275,2]
[344349010,1733362237503,-26055.39280625,0.000275,2]
[344349011,1733362237515,-447.19999994,0.000275,2]
[344349014,1733362238172,-4453.58473984,0.000275,2]
[344349015,1733362238183,-500.0,0.00027631,2]
[344349016,1733362238193,-500.0,0.00027905,2]
[344349017,1733362238203,-154.049,0.00028,30]
[344349018,1733362238213,-876.30444299,0.00028095,2]
[344349020,1733362238223,-500.0,0.00028179,2]
[344349021,1733362238234,-542.00922101,0.00028219,14]
[344349022,1733362238244,-500.0,0.00028219,14]
[344349023,1733362238253,-508.92364538,0.00028219,14]
[344349024,1733362238263,-154.059,0.000284,30]
[344349025,1733362238272,-500.0,0.00028453,2]
[344349026,1733362238282,-156.19952672,0.00028629,2]
[344349027,1733362238292,-3200.0,0.00028642,2]
[344349028,1733362238301,-150.0,0.00028642,2]
[344349029,1733362238310,-587.0,0.00028695,2]
[344349030,1733362238320,-193.98,0.00028727,2]
[344349031,1733362238330,-151.0,0.00028735,7]
[344349032,1733362238340,-876.30444299,0.0002874,2]
[344349034,1733362238354,-385.818147,0.00028767,7]
[344349035,1733362238364,-385.818147,0.00028767,7]
[344349037,1733362238373,-154.019,0.000288,60]
[344349038,1733362238384,-151.22578834,0.00028866,2]
[344349039,1733362238394,-385.818147,0.00029,7]
[344349040,1733362238403,-385.818147,0.00029,7]
[344349041,1733362238413,-151.0,0.00029,7]
[344349042,1733362238423,-876.30444299,0.00029384,2]
[344349043,1733362238432,-587.0,0.0002955,2]
[344349044,1733362238442,-563.0,0.00029558,15]
[344349046,1733362238452,-346.06169448,0.00029783,2]
[344349047,1733362238464,-1823.93830552,0.00029783,2]
[344349048,1733362238474,-2375.0,0.00029783,2]
[344349049,1733362238483,-150.0,0.00029783,2]
[344349050,1733362238493,-2514.59650295,0.0003,30]
[344349051,1733362238502,-385.818147,0.0003,7]
[344349052,1733362238512,-385.818147,0.0003,7]
[344349053,1733362238522,-151.0,0.0003,7]
[344349054,1733362238534,-393.72,0.0003,31]
[344349055,1733362238544,-393.72,0.0003,31]
[344349056,1733362238554,-393.72,0.0003,31]
[344349057,1733362238563,-393.72,0.0003,31]
[344349058,1733362238572,-393.72,0.0003,31]
[344349059,1733362238583,-393.72,0.0003,31]
[344349060,1733362238592,-393.72,0.0003,31]
[344349061,1733362238605,-393.72,0.0003,31]
[344349062,1733362238615,-393.72,0.0003,31]
[344349063,1733362238624,-393.72,0.0003,31]
[344349064,1733362238633,-393.72,0.0003,31]
[344349065,1733362238643,-393.72,0.0003,31]
[344349066,1733362238653,-199.0,0.0003,2]
[344349067,1733362238663,-2000.0,0.0003,3]
[344349068,1733362238673,-876.30444299,0.00030029,2]
[344349069,1733362238682,-155.05997634,0.0003006,2]
[344349070,1733362238691,-385.818147,0.00030136,7]
[344349071,1733362238700,-385.818147,0.00030136,7]
[344349072,1733362238710,-876.30444299,0.00030673,2]
[344349074,1733362238720,-218.45,0.00030712,3]
[344349076,1733362238730,-655.39,0.00030712,3]
[344349078,1733362238740,-1000.0,0.00030722,120]
[344349080,1733362238750,-500.0,0.00030722,2]
[344349082,1733362238760,-33333.0,0.00030722,2]
[344349084,1733362238770,-666.0,0.00030722,2]
[344349086,1733362238780,-153.0,0.00030767,30]
[344349088,1733362238789,-153.0,0.00030767,30]
[344349090,1733362238799,-153.0,0.00030767,30]
[344349092,1733362238809,-153.0,0.00030767,30]
[344349094,1733362238818,-213.2007628,0.00030767,30]
[344349096,1733362238827,-153.0,0.00030767,30]
[344349098,1733362238838,-153.0,0.00030767,30]
[344349100,1733362238849,-153.0,0.00030767,30]
[344349102,1733362238859,-153.0,0.00030767,30]
[344349104,1733362238868,-503.16986874,0.00030773,5]
[344349106,1733362238877,-500.0,0.00030773,5]
[344349108,1733362238886,-502.711171,0.00030773,5]
[344349110,1733362238896,-151.0,0.00030773,7]
[344349112,1733362238906,-151.0,0.00030773,7]
[344349114,1733362238916,-151.0,0.00030773,7]
[344349116,1733362238926,-151.0,0.00030773,7]
[344349118,1733362238935,-396.298827,0.00030773,7]
[344349120,1733362238944,-396.298827,0.00030773,7]
[344349122,1733362238954,-396.298827,0.00030773,7]
[344349124,1733362238963,-396.298827,0.00030773,7]
[344349126,1733362238972,-396.298827,0.00030773,7]
[344349128,1733362238983,-396.298827,0.00030773,7]
[344349130,1733362238993,-396.298827,0.00030773,7]
[344349132,1733362239004,-396.298827,0.00030773,7]
[344349134,1733362239014,-396.298827,0.00030773,7]
[344349136,1733362239023,-396.298827,0.00030773,7]
[344349138,1733362239033,-396.298827,0.00030773,7]
[344349140,1733362239043,-396.298827,0.00030773,7]
[344349142,1733362239054,-396.298827,0.00030773,7]
[344349144,1733362239064,-396.298827,0.00030773,7]
[344349146,1733362239074,-396.298827,0.00030773,7]
[344349148,1733362239083,-396.298827,0.00030773,7]
[344349150,1733362239093,-396.298827,0.00030773,7]
[344349152,1733362239104,-396.298827,0.00030773,7]
[344349154,1733362239115,-396.298827,0.00030773,7]
[344349156,1733362239125,-396.298827,0.00030773,7]
[344349158,1733362239135,-840.546944,0.00030773,7]
[344349160,1733362239145,-840.546944,0.00030773,7]
[344349162,1733362239154,-840.546944,0.00030773,7]
[344349164,1733362239165,-840.546944,0.00030773,7]
[344349166,1733362239175,-840.546944,0.00030773,7]
[344349170,1733362239197,-840.546944,0.00030773,7]
[344349172,1733362239211,-840.546944,0.00030773,7]
[344349174,1733362239222,-840.546944,0.00030773,7]
[344349176,1733362239233,-840.546944,0.00030773,7]
[344349178,1733362239243,-840.546944,0.00030773,7]
[344349180,1733362239254,-840.546944,0.00030773,7]
[344349182,1733362239264,-840.546944,0.00030773,7]
[344349184,1733362239275,-840.546944,0.00030773,7]
[344349186,1733362239285,-840.546944,0.00030773,7]
[344349188,1733362239295,-840.546944,0.00030773,7]
[344349190,1733362239305,-840.546944,0.00030773,7]
[344349192,1733362239316,-840.546944,0.00030773,7]
[344349195,1733362239327,-840.546944,0.00030773,7]
[344349197,1733362239336,-840.546944,0.00030773,7]
[344349199,1733362239350,-840.54694,0.00030773,7]
[344349201,1733362239361,-151.0,0.00030773,7]
[344349202,1733362239372,-47624.2671933,0.00030773,2]
[344349205,1733362239382,-163.60843753,0.00030773,2]
[344349207,1733362239392,-264747.1034808,0.00030773,10]
[344349576,1733362242881,-1256.07,0.00026261,2]
[344349577,1733362242890,-1256.07,0.00026535,2]
[344349580,1733362242900,-1256.07,0.00026809,2]
[344349582,1733362242910,-0.89,0.00028642,2]
[344349656,1733362243640,-1256.07,0.00027083,2]
[344349658,1733362243650,-1256.07,0.00027357,2]
[344349660,1733362243660,-149.11,0.00028642,2]
[344349662,1733362243670,-575.45131,0.0002955,15]
[344349664,1733362243680,-202800.51802161,0.00030773,10]
[344349667,1733362243692,-7003.79709378,0.00030773,10]
[344349671,1733362243797,-1256.07,0.00027631,2]
[344349673,1733362243807,-2222.92446657,0.00030773,10]
[344349857,1733362246290,-532.0,0.00026783,2]
[344349860,1733362246301,-1256.07,0.00027905,2]
[344349862,1733362246310,-1256.07,0.00028179,2]
[344349865,1733362246320,-1256.07,0.00028453,2]
[344349868,1733362246329,-1256.07,0.00028727,2]
[344349871,1733362246339,-1256.07,0.00029001,2]
[344349873,1733362246349,-1256.07,0.00029275,2]
[344349874,1733362246358,-1256.07,0.00029549,2]
[344349876,1733362246367,-480.0,0.0002955,15]
[344349878,1733362246377,-9049.63612232,0.00030773,10]
[344349881,1733362246389,-107030.15974362,0.00030773,10]
[344351303,1733362361661,164.535963,0.00013973,2]
[344351318,1733362956413,164.3548903,0.00013973,2]
[344351330,1733363324008,-200.0,0.00028,120]
[344351331,1733363324033,-388.0,0.00029,120]
[344351332,1733363324055,-200.0,0.0003,120]
[344351333,1733363324080,-16652.0,0.0003,120]
[344351347,1733363424227,-1744.0,0.0003,120]
[344351465,1733363438533,-1169.27083333,0.00022653,2]
[344351466,1733363438543,-221.91716467,0.00023423,2]
[344351467,1733363438556,-1153.346855,0.00023423,2]
[344351613,1733363446419,-23524.73598033,0.00023423,2]
[344351614,1733363446429,-343.17113372,0.00023536,2]
[344351615,1733363446440,-224.7814536,0.00023797,2]
[344351616,1733363446449,-500.0,0.00024421,2]
[344351617,1733363446459,-300.0,0.00024423,2]
[344351618,1733363446468,-300.0,0.00024423,2]
[344351619,1733363446479,-500.0,0.00024424,2]
[344351620,1733363446488,-500.0,0.00024424,2]
[344351621,1733363446498,-500.0,0.00024424,2]
[344351622,1733363446507,-500.0,0.00024424,2]
[344351623,1733363446516,-500.0,0.00024424,2]
[344351624,1733363446526,-500.0,0.00024424,2]
[344351625,1733363446535,-500.0,0.00024424,2]
[344351626,1733363446545,-513.69145758,0.00024424,2]
[344351627,1733363446554,-500.0,0.00024424,2]
[344351628,1733363446565,-500.0,0.00024424,2]
[344351629,1733363446574,-500.0,0.00024424,2]
[344351630,1733363446584,-500.0,0.00024424,2]
[344351631,1733363446594,-261.91440127,0.00024424,2]
[344351632,1733363446603,-520.99476952,0.00024424,2]
[344351633,1733363446613,-515.65755934,0.00024424,2]
[344351634,1733363446622,-500.0,0.00024424,2]
[344351635,1733363446632,-575.69,0.00024424,2]
[344351636,1733363446642,-219.66080066,0.00024695,2]
[344351637,1733363446653,-500.0,0.00024698,2]
[344351638,1733363446663,-500.0,0.00024698,2]
[344351639,1733363446672,-500.0,0.00024698,2]
[344351640,1733363446682,-500.0,0.00024698,2]
[344351641,1733363446691,-500.0,0.00024698,2]
[344351642,1733363446701,-500.0,0.00024698,2]
[344351643,1733363446711,-500.0,0.00024698,2]
[344351644,1733363446720,-500.0,0.00024698,2]
[344351645,1733363446731,-524.44952032,0.00024698,2]
[344351646,1733363446741,-500.0,0.00024698,2]
[344351647,1733363446750,-500.0,0.00024698,2]
[344351648,1733363446760,-575.69,0.00024698,2]
[344351649,1733363446770,-500.0,0.00024972,2]
[344351650,1733363446782,-500.0,0.00024972,2]
[344351651,1733363446792,-500.0,0.00024972,2]
[344351652,1733363446801,-500.0,0.00024972,2]
[344351653,1733363446811,-500.0,0.00024972,2]
[344351654,1733363446821,-500.0,0.00024972,2]
[344351655,1733363446830,-500.0,0.00024972,2]
[344351656,1733363446839,-500.0,0.00024972,2]
[344351657,1733363446848,-500.0,0.00024972,2]
[344351658,1733363446858,-500.0,0.00024972,2]
[344351659,1733363446867,-575.69,0.00024972,2]